fUSD/lending_fUSD_20241021
["ID","MTS","AMOUNT","RATE_DAILY","PERIOD"]
[340578604,1729506690760,-2996.93633646,0.00011,2]
[340578605,1729506690785,-2103.21801161,0.00011,2]
[340578606,1729506691349,-6210.92262463,0.00011,2]
[340578607,1729506691364,-37191.318,0.00011,2]
[340578608,1729506691378,-7164.65151391,0.00011,2]
[340578609,1729506691620,300.0,0.00010999,2]
[340578610,1729506692186,793.0,0.00026,60]
[340578611,1729506879574,150.0,0.0001099,2]
[340578612,1729507111267,213.914,0.0001078,2]
[340578613,1729507285791,688.0,0.00026,60]
[340578614,1729507356604,158.25,0.00010959,2]
[340578615,1729507429435,784.27752062,0.00010999,2]
[340578616,1729507549166,236.9904229,0.000109,2]
[340578617,1729507623544,300.0,0.000106,3]
[340578618,1729507625694,600.0,0.000107,3]
[340578620,1729507627899,1000.0,0.000108,3]
[340578621,1729507630267,1300.0,0.000109,3]
[340578622,1729507657155,3440.74696387,0.000109,2]
[340578641,1729507772003,250.0,0.0001,2]
[340578642,1729507805369,250.88171432,0.00010846,2]
[340578644,1729507831657,-19903.58630826,0.00011,2]
[340578645,1729507831727,-3668.04861046,0.00011,2]
[340578646,1729507831739,-3419.0,0.00011,2]
[340578647,1729507831751,-297.04785907,0.00011,2]
[340578648,1729507831763,-654.11630791,0.00011,2]
[340578649,1729507831980,-1055.69681033,0.00011,2]
[340578650,1729507831992,-3767.00744455,0.00011,2]
[340578681,1729507837733,-13003.02922992,0.00011,2]
[340578683,1729507837867,-7277.5005,0.00011,2]
[340578684,1729507837995,-11724.27234,0.00011,2]
[340578685,1729507838007,-1004.29035983,0.00011,2]
[340578721,1729507839777,-285361.6488,0.00011,2]
[340578732,1729507842511,150.0,0.000115,3]
[340578736,1729507842882,-6032.37977617,0.00011,2]
[340578737,1729507843019,-33624.99999999,0.00011,2]
[340578748,1729507871690,500.0,0.00010999,2]
[340578749,1729507871730,164.017364,0.00010999,2]
[340578750,1729507871769,500.0,0.00010999,2]
[340578751,1729507871815,487.42558683,0.00010999,2]
[340578752,1729507878027,2300.0,0.000107,3]
[340578753,1729507880135,4600.0,0.000108,3]
[340578754,1729507882291,7000.0,0.000109,3]
[340578755,1729507909497,156.45,0.00010959,2]
[340578756,1729507952375,249.01,0.00025323,120]
[340578757,1729508018659,629.50360548,0.000109,2]
[340578758,1729508227623,3727.39665301,0.000109,2]
[340578759,1729508243386,500.0,0.00010999,2]
[340578760,1729508243423,288.7174257,0.00010999,2]
[340578762,1729508311292,2965.788,0.0001078,2]
[340578763,1729508446604,1339.4121,0.000109,2]
[340578764,1729508473455,156.05,0.00010959,2]
[340578765,1729508708216,5636.964,0.000109,2]
[340578766,1729508797939,3354.65698779,0.000109,2]
[340578767,1729508844474,1800.0,0.000107,3]
[340578768,1729508846629,3600.0,0.000108,3]
[340578770,1729508848732,5400.0,0.000109,3]
[340578772,1729508943258,150.0,0.00010999,2]
[340578773,1729508973168,5649.4608,0.000109,2]
[340578774,1729509014497,271.83,0.00024945,120]
[340578796,1729509037977,-33053.21471294,0.00011,2]
[340578797,1729509038041,-264.28414064,0.00011,2]
[340579262,1729509042987,-268.66924639,0.00011,2]
[340579264,1729509043002,-1064.14486394,0.00011,2]
[340579266,1729509043015,-4579.21889902,0.00011,2]
[340579284,1729509043183,-265.15522843,0.00011,2]
[340579689,1729509047454,162.18,0.00010959,2]
[340580417,1729509056016,165.26950965,0.00010999,2]
[340580419,1729509060142,500.0,0.00026,120]
[340580420,1729509076478,86414.3151,0.000109,2]
[340580421,1729509085195,234.02687094,0.00010999,2]
[340580422,1729509095361,264.68941254,0.00010999,2]
[340580423,1729509122640,159.71465229,0.000109,2]
[340580424,1729509164660,505.82396376,0.00010973,2]
[340580425,1729509172781,921.9431,0.000109,2]
[340580426,1729509274026,150.0,0.0001099,2]
[340580427,1729509361549,-69000.0,0.00011,2]
[340580428,1729509368290,6461.56879939,0.000109,2]
[340580429,1729509439210,-25000.0,0.00011,2]
[340580430,1729509441334,9122.7894,0.000109,2]
[340580431,1729509511307,2372.631,0.0001078,2]
[340580432,1729509581181,250.0,0.0001,2]
[340580433,1729509616466,199.2,0.00024961,120]
[340580434,1729509650399,160.7,0.00010959,2]
[340580438,1729509938812,5815.41191937,0.000109,2]
[340580440,1729510025381,1200.0,0.000107,3]
[340580441,1729510027171,2500.0,0.000108,3]
[340580442,1729510029281,3800.0,0.000109,3]
[340580475,1729510232087,-671.28,0.00011,2]
[340580476,1729510232133,-313.45570478,0.00011,2]
[340580477,1729510232168,-260.36775229,0.00011,2]
[340580478,1729510232215,-54762.90000002,0.00011,2]
[340580479,1729510232355,-360.50156887,0.00011,2]
[340580480,1729510232367,-397.42457406,0.00011,2]
[340580481,1729510232394,-285.30957667,0.00011,2]
[340580512,1729510238290,-11101.19986199,0.00011,2]
[340580513,1729510238302,-511.64502855,0.00011,2]
[340580514,1729510238319,-404.64145571,0.00011,2]
[340580515,1729510238331,-279.4315376,0.00011,2]
[340580516,1729510238343,-35975.88818421,0.00011,2]
[340580517,1729510238354,-1858.427974,0.00011,2]
[340580518,1729510238367,-2708.181532,0.00011,2]
[340580519,1729510238379,-285.68778936,0.00011,2]
[340580520,1729510238391,-398.46499639,0.00011,2]
[340580521,1729510238403,-789.15183684,0.00011,2]
[340580522,1729510238419,-4102.02946677,0.00011,2]
[340580523,1729510238430,-865.69,0.00011,2]
[340580524,1729510238442,-3545.23258283,0.00011,2]
[340580525,1729510238453,-4363.59582778,0.00011,2]
[340580526,1729510238508,-1330229.47464127,0.00011,2]
[340580527,1729510238518,-650667.62534397,0.00011,2]
[340580528,1729510238529,-222.0,0.00011,2]
[340580529,1729510238539,-400.0,0.00011,2]
[340580530,1729510238548,-368192.77473028,0.00011,2]
[340580531,1729510238558,-1708.5,0.00011,2]
[340580532,1729510238573,-76074.19389724,0.00011,2]
[340580533,1729510238582,-300.0,0.00012,2]
[340580534,1729510238592,-151.0,0.00012329,2]
[340580535,1729510238602,-151.0,0.00012329,2]
[340580536,1729510238611,-5815.41191937,0.00012448,2]
[340580537,1729510238621,-151.97713373,0.000125,3]
[340580538,1729510238630,-648.6580915,0.00013698,2]
[340580539,1729510238639,-500.0,0.00013773,2]
[340580541,1729510238649,-2075.06,0.000138,2]
[340580543,1729510238658,-151.296905,0.000138,2]
[340580545,1729510238667,-151.0,0.000138,2]
[340580546,1729510238677,-151.0,0.000138,2]
[340580548,1729510238686,-224565.860702,0.000138,2]
[340580550,1729510238695,-338.94,0.000138,2]
[340580552,1729510238705,-499.99,0.00013873,2]
[340580554,1729510238714,-255.0,0.000139,2]
[340580556,1729510238723,-259.401459,0.000139,2]
[340580558,1729510238733,-151.0,0.000139,2]
[340580560,1729510238742,-151.0,0.000139,2]
[340580562,1729510238752,-151.0,0.000139,2]
[340580564,1729510238762,-151.0,0.000139,2]
[340580566,1729510238771,-151.0,0.000139,2]
[340580568,1729510238781,-151.0,0.000139,2]
[340580570,1729510238791,-264.933384,0.000139,2]
[340580572,1729510238800,-151.0,0.000139,2]
[340580574,1729510238810,-151.0,0.000139,2]
[340580576,1729510238826,-223.569799,0.000139,2]
[340580578,1729510238841,-151.0,0.000139,2]
[340580580,1729510238851,-151.0,0.000139,2]
[340580582,1729510238860,-151.775977,0.000139,2]
[340580584,1729510238870,-151.0,0.000139,2]
[340580586,1729510238881,-151.0,0.000139,2]
[340580588,1729510238892,-151.0,0.000139,2]
[340580591,1729510238903,-151.0,0.000139,2]
[340580593,1729510238914,-151.0,0.000139,2]
[340580596,1729510238924,-151.0,0.000139,2]
[340580599,1729510238933,-151.615928,0.000139,2]
[340580601,1729510238943,-151.741088,0.000139,2]
[340580603,1729510238953,-151.0,0.000139,2]
[340580605,1729510238963,-151.686004,0.000139,2]
[340580607,1729510238972,-151.0,0.000139,2]
[340580609,1729510238982,-298.092864,0.000139,2]
[340580611,1729510238991,-151.0,0.000139,2]
[340580613,1729510239001,-166.40641,0.000139,2]
[340580615,1729510239010,-151.0,0.000139,2]
[340580617,1729510239019,-252.071626,0.000139,2]
[340580619,1729510239028,-151.0,0.000139,2]
[340580621,1729510239039,-245.92541,0.000139,2]
[340580623,1729510239049,-151.0,0.000139,2]
[340580625,1729510239059,-151.0,0.000139,2]
[340580627,1729510239072,-151.0,0.000139,2]
[340580629,1729510239082,-151.0,0.000139,2]
[340580631,1729510239092,-185.684918,0.000139,2]
[340580633,1729510239102,-151.0,0.000139,2]
[340580635,1729510239112,-151.0,0.000139,2]
[340580637,1729510239121,-5000.0,0.000139,5]
[340580639,1729510239131,-297.906892,0.000139,2]
[340580641,1729510239140,-151.0,0.000139,2]
[340580643,1729510239150,-166.610727,0.000139,2]
[340580645,1729510239160,-59295.9840487,0.000139,2]
[340580647,1729510239169,-5815.41191937,0.00013996,2]
[340580649,1729510239179,-150.99,0.00013996,2]
[340580651,1729510239188,-43090.22,0.00013996,2]
[340580653,1729510239198,-266.0,0.00014,2]
[340580655,1729510239207,-350.0,0.00014,2]
[340580657,1729510239217,-201.21498285,0.00015,2]
[340580659,1729510239226,-5389.0,0.00015,2]
[340580661,1729510239235,-494.50452119,0.00015,2]
[340580663,1729510239245,-10022.54851456,0.0001513,2]
[340580665,1729510239255,-1000.0,0.00015142,2]
[340580667,1729510239265,-1215.74777992,0.00015235,2]
[340580669,1729510239274,-565.58502372,0.000153,2]
[340580671,1729510239283,-1000.0,0.00015525,2]
[340580673,1729510239293,-761.0,0.00015535,2]
[340580675,1729510239303,-150.0,0.00015542,2]
[340580677,1729510239317,-5815.41191937,0.00015544,2]
[340580679,1729510239328,-250.0,0.0001575,2]
[340580681,1729510239337,-2946.02106951,0.000159,2]
[340580683,1729510239347,-266.4692806,0.00016,2]
[340580685,1729510239357,-400.0,0.00016,2]
[340580687,1729510239367,-856.33,0.00016643,2]
[340580689,1729510239376,-1719.77,0.00016817,2]
[340580691,1729510239386,-5815.41191937,0.00017092,2]
[340580693,1729510239396,-779.0,0.000171,2]
[340580694,1729510239405,-500.0,0.00017146,2]
[340580696,1729510239415,-2847.0,0.000172,2]
[340580698,1729510239425,-151.0,0.000172,2]
[340580700,1729510239434,-288.0,0.0001726,2]
[340580702,1729510239444,-151.0,0.00017465,2]
[340580704,1729510239454,-151.0,0.00017465,2]
[340580707,1729510239464,-1000.0,0.00017466,2]
[340580709,1729510239474,-450.0,0.00018,2]
[340580711,1729510239487,-4543.71953012,0.00018,2]
[340580713,1729510239497,-271.83,0.00018142,2]
[340580715,1729510239506,-448.0,0.00018143,2]
[340580717,1729510239515,-1245.0,0.00018143,2]
[340580719,1729510239525,-299.829,0.00018143,2]
[340580721,1729510239534,-199.2,0.00018153,2]
[340580723,1729510239544,-250.0,0.00018367,2]
[340580725,1729510239554,-179.48,0.00018426,2]
[340580727,1729510239563,-200.0,0.00018446,2]
[340580729,1729510239573,-250.0,0.00018469,2]
[340580731,1729510239583,-150.19,0.00018472,2]
[340580733,1729510239592,-160.39,0.00018487,2]
[340580735,1729510239602,-2075.06,0.000185,2]
[340580737,1729510239611,-163.08,0.00018508,2]
[340580739,1729510239620,-5815.41191937,0.00018639,2]
[340580741,1729510239630,-150.0,0.00018664,2]
[340580742,1729510239639,-8262.0,0.000187,2]
[340580744,1729510239649,-200.0,0.00018788,2]
[340580746,1729510239659,-856.33,0.00018907,2]
[340580749,1729510239670,-167.0,0.00019045,2]
[340580751,1729510239680,-500.0,0.0001905,2]
[340580752,1729510239689,-196.73,0.00019178,2]
[340580754,1729510239699,-11521.0,0.000193,3]
[340580755,1729510239708,-151.0,0.00019406,2]
[340580757,1729510239719,-154.815276,0.00019406,2]
[340580759,1729510239728,-1000.0,0.00019406,2]
[340580761,1729510239738,-160.39,0.00019411,2]
[340580763,1729510239748,-150.0,0.00019535,2]
[340580765,1729510239758,-164.0,0.00019535,2]
[340580767,1729510239768,-150.596,0.00019535,2]
[340580769,1729510239778,-285.663,0.00019535,2]
[340580771,1729510239787,-150.0,0.00019535,2]
[340580773,1729510239797,-165.491,0.00019535,2]
[340580775,1729510239806,-152.352,0.00019535,2]
[340580777,1729510239817,-156.964,0.00019535,2]
[340580780,1729510239827,-200.0,0.00019535,2]
[340580781,1729510239842,-11000.0,0.000199,2]
[340580783,1729510239851,-151.0,0.000199,2]
[340580786,1729510239862,-151.0,0.000199,2]
[340580787,1729510239872,-151.0,0.000199,2]
[340580789,1729510239881,-11521.0,0.000199,5]
[340580791,1729510239891,-500.0,0.0002,2]
[340580794,1729510239901,-528.99235,0.0002,2]
[340580796,1729510239912,-5591.39,0.0002,2]
[340580798,1729510239921,-7970.07844109,0.0002,2]
[340580800,1729510239931,-172.65,0.0002,2]
[340580802,1729510239940,-151.0,0.000201,2]
[340580804,1729510239950,-5815.41191937,0.00020187,2]
[340580807,1729510239959,-160.39,0.00020336,2]
[340580810,1729510239971,-271.83,0.0002041,2]
[340580812,1729510239980,-1000.0,0.0002042,2]
[340580847,1729510239990,-199.2,0.00020423,2]
[340580849,1729510240304,-197.44,0.00020453,2]
[340580851,1729510240315,-2075.06,0.000206,2]
[340580853,1729510240326,-14850.51595678,0.00021,2]
[340580855,1729510240336,-856.33,0.00021171,2]
[340580858,1729510240347,-756.49,0.00021178,2]
[340580860,1729510240358,-756.49,0.00021178,2]
[340580862,1729510240368,-755.8,0.00021178,2]
[340580864,1729510240379,-160.39,0.0002126,2]
[340580866,1729510240389,-1000.0,0.00021347,2]
[340580868,1729510240399,-151.0,0.00021735,2]
[340580870,1729510240408,-206.167162,0.00021735,2]
[340580872,1729510240418,-5815.41191937,0.00021735,2]
[340580874,1729510240428,-375.0,0.00021917,2]
[340580876,1729510240438,-174.58,0.00021918,2]
[340580878,1729510240447,-174.55,0.00021918,2]
[340580880,1729510240457,-550.0,0.00022,2]
[340580882,1729510240467,-160.39,0.00022184,2]
[340580884,1729510240477,-561.1196419,0.00022423,2]
[340580886,1729510240488,-150.0,0.00022535,2]
[340580888,1729510240499,-150.0,0.00022535,2]
[340580890,1729510240508,-150.0,0.00022535,2]
[340580892,1729510240518,-271.83,0.00022678,2]
[340580894,1729510240528,-199.2,0.00022692,2]
[340580896,1729510240537,-424.39,0.00023096,2]
[340580898,1729510240547,-756.49,0.00023096,2]
[340580900,1729510240556,-756.49,0.00023096,2]
[340580902,1729510240568,-756.49,0.00023096,2]
[340580904,1729510240578,-756.49,0.00023096,2]
[340580906,1729510240588,-756.49,0.00023096,2]
[340580908,1729510240597,-756.49,0.00023096,2]
[340580910,1729510240606,-756.49,0.00023096,2]
[340580912,1729510240617,-756.49,0.00023096,2]
[340580914,1729510240626,-756.49,0.00023096,2]
[340580916,1729510240636,-756.49,0.00023096,2]
[340580918,1729510240645,-756.49,0.00023096,2]
[340580920,1729510240655,-756.49,0.00023096,2]
[340580922,1729510240664,-756.49,0.00023096,2]
[340580924,1729510240674,-756.49,0.00023096,2]
[340580926,1729510240683,-756.49,0.00023096,2]
[340580928,1729510240693,-756.49,0.00023096,2]
[340580930,1729510240702,-756.49,0.00023096,2]
[340580932,1729510240712,-5815.41191937,0.00023283,2]
[340580934,1729510240721,-1000.0,0.00023287,2]
[340580936,1729510240731,-151.0,0.00023368,7]
[340580938,1729510240740,-5015.61,0.00023368,2]
[340580940,1729510240749,-6331.61,0.00023368,2]
[340580942,1729510240759,-535.69,0.0002337,2]
[340580944,1729510240768,-489.35,0.0002337,2]
[340580946,1729510240778,-535.69,0.0002337,2]
[340580948,1729510240787,-535.69,0.0002337,2]
[340580950,1729510240797,-535.69,0.0002337,2]
[340580952,1729510240806,-535.69,0.0002337,2]
[340580954,1729510240818,-535.69,0.0002337,2]
[340580956,1729510240828,-535.69,0.0002337,2]
[340580958,1729510240844,-535.69,0.0002337,2]
[340580960,1729510240853,-235.45,0.0002337,2]
[340580962,1729510240863,-856.33,0.00023434,2]
[340580964,1729510240873,-160.94714642,0.0002378,2]
[340580966,1729510240882,-86801.3644558,0.000238,2]
[340580968,1729510240891,-151.0,0.000238,7]
[340580970,1729510240901,-151.0,0.000238,7]
[340580972,1729510240912,-500.0,0.00023873,2]
[340580974,1729510240922,-280.32737862,0.00023873,2]
[340580976,1729510240931,-500.0,0.00023873,2]
[340580978,1729510240940,-192899.43441372,0.0002388,2]
[340580980,1729510240949,-151.0,0.0002388,7]
[340580982,1729510240960,-151.0,0.0002388,7]
[340580984,1729510240969,-151.0,0.0002388,7]
[340580986,1729510240979,-29704.16112971,0.0002388,2]
[340580988,1729510240988,-200.64,0.000239,2]
[340580990,1729510240997,-150.0,0.000239,2]
[340580992,1729510241007,-600.0,0.00024,2]
[340580994,1729510241016,-2075.06,0.00024,14]
[340580996,1729510241026,-756.49,0.00024055,2]
[340580998,1729510241035,-756.49,0.00024055,2]
[340581000,1729510241045,-756.49,0.00024055,2]
[340581002,1729510241054,-756.49,0.00024055,2]
[340581004,1729510241064,-756.49,0.00024055,2]
[340581006,1729510241073,-756.49,0.00024055,2]
[340581008,1729510241083,-756.49,0.00024055,2]
[340581010,1729510241092,-756.49,0.00024055,2]
[340581012,1729510241102,-756.49,0.00024055,2]
[340581014,1729510241111,-756.49,0.00024055,2]
[340581016,1729510241120,-408.69,0.00024055,2]
[340581018,1729510241130,-154.833465,0.00024174,7]
[340581020,1729510241139,-311.56,0.00024192,2]
[340581022,1729510241149,-214.19,0.00024361,2]
[340581024,1729510241158,-315.32,0.000244,2]
[340581026,1729510241168,-1006.56,0.000244,2]
[340581028,1729510241179,-500.0,0.000244,2]
[340581030,1729510241188,-500.0,0.000244,2]
[340581032,1729510241198,-500.0,0.000244,2]
[340581034,1729510241207,-500.0,0.000244,2]
[340581036,1729510241216,-500.0,0.000244,2]
[340581038,1729510241226,-500.0,0.000244,2]
[340581040,1729510241235,-500.0,0.000244,2]
[340581042,1729510241244,-500.0,0.000244,2]
[340581044,1729510241254,-500.0,0.000244,2]
[340581046,1729510241263,-500.0,0.000244,2]
[340581048,1729510241273,-1042.74279854,0.00024407,2]
[340581050,1729510241283,-2500.0,0.00024425,2]
[340581052,1729510241293,-397.01931376,0.000245,2]
[340581054,1729510241303,-151.0,0.000246,7]
[340581056,1729510241314,-6300.0,0.000246,8]
[340581058,1729510241324,-150.0,0.00024656,2]
[340581060,1729510241334,-500.0,0.00024657,3]
[340581063,1729510241344,-500.0,0.00024657,3]
[340581065,1729510241353,-500.0,0.00024657,3]
[340581067,1729510241363,-503.27949842,0.00024657,3]
[340581069,1729510241373,-588.72,0.00024657,3]
[340581071,1729510241382,-588.72,0.00024657,3]
[340581073,1729510241392,-588.72,0.00024657,3]
[340581075,1729510241402,-588.72,0.00024657,3]
[340581077,1729510241412,-588.72,0.00024657,3]
[340581079,1729510241421,-588.72,0.00024657,3]
[340581081,1729510241430,-588.72,0.00024657,3]
[340581083,1729510241440,-588.72,0.00024657,3]
[340581085,1729510241449,-588.72,0.00024657,3]
[340581087,1729510241459,-588.72,0.00024657,3]
[340581089,1729510241469,-588.72,0.00024657,3]
[340581091,1729510241479,-588.72,0.00024657,3]
[340581093,1729510241491,-588.72,0.00024657,3]
[340581095,1729510241501,-588.72,0.00024657,3]
[340581097,1729510241510,-588.72,0.00024657,3]
[340581099,1729510241519,-499.66712058,0.00024657,3]
[340581101,1729510241529,-322.06308852,0.00024657,3]
[340581103,1729510241538,-500.0,0.00024657,3]
[340581105,1729510241548,-500.0,0.00024657,3]
[340581107,1729510241558,-500.0,0.00024657,3]
[340581109,1729510241570,-500.0,0.00024657,3]
[340581111,1729510241579,-500.0,0.00024657,3]
[340581113,1729510241588,-500.0,0.00024657,3]
[340581115,1729510241598,-500.0,0.00024657,3]
[340581117,1729510241607,-500.0,0.00024657,3]
[340581119,1729510241616,-500.0,0.00024657,3]
[340581121,1729510241626,-500.0,0.00024657,3]
[340581122,1729510241637,-621.99618104,0.00024657,3]
[340581123,1729510241647,-1176.07,0.00024657,3]
[340581124,1729510241657,-1176.07,0.00024657,3]
[340581125,1729510241666,-1176.07,0.00024657,3]
[340581126,1729510241675,-1176.07,0.00024657,3]
[340581127,1729510241685,-1176.07,0.00024657,3]
[340581128,1729510241694,-1176.07,0.00024657,3]
[340581129,1729510241704,-1176.07,0.00024657,3]
[340581130,1729510241713,-1176.07,0.00024657,3]
[340581131,1729510241722,-1176.07,0.00024657,3]
[340581132,1729510241731,-1176.07,0.00024657,3]
[340581133,1729510241740,-1176.07,0.00024657,3]
[340581134,1729510241750,-1176.07,0.00024657,3]
[340581135,1729510241759,-1176.07,0.00024657,3]
[340581136,1729510241768,-1176.07,0.00024657,3]
[340581137,1729510241777,-500.0,0.00024657,3]
[340581138,1729510241787,-500.0,0.00024657,3]
[340581139,1729510241797,-500.0,0.00024657,3]
[340581140,1729510241806,-500.0,0.00024657,3]
[340581141,1729510241816,-500.0,0.00024657,3]
[340581142,1729510241826,-500.0,0.00024657,3]
[340581143,1729510241839,-500.0,0.00024657,3]
[340581144,1729510241848,-500.0,0.00024657,3]
[340581145,1729510241857,-500.0,0.00024657,3]
[340581146,1729510241867,-500.0,0.00024657,3]
[340581148,1729510241879,-500.0,0.00024657,3]
[340581150,1729510241888,-263.46115423,0.00024657,3]
[340581152,1729510241898,-500.0,0.00024657,3]
[340581154,1729510241907,-500.0,0.00024657,3]
[340581156,1729510241922,-500.0,0.00024657,3]
[340581159,1729510241932,-500.0,0.00024657,3]
[340581161,1729510241942,-500.0,0.00024657,3]
[340581163,1729510241951,-500.0,0.00024657,3]
[340581165,1729510241961,-500.0,0.00024657,3]
[340581167,1729510241970,-500.0,0.00024657,3]
[340581169,1729510241980,-500.0,0.00024657,3]
[340581171,1729510241990,-500.0,0.00024657,3]
[340581173,1729510241999,-500.0,0.00024657,3]
[340581175,1729510242009,-500.0,0.00024657,3]
[340581177,1729510242018,-162.60740479,0.00024657,3]
[340581179,1729510242027,-500.0,0.00024657,3]
[340581181,1729510242037,-500.0,0.00024657,3]
[340581183,1729510242047,-500.0,0.00024657,3]
[340581185,1729510242057,-500.0,0.00024657,3]
[340581187,1729510242067,-500.0,0.00024657,3]
[340581189,1729510242077,-152.92,0.00024657,3]
[340581191,1729510242086,-500.0,0.00024657,3]
[340581193,1729510242097,-500.0,0.00024657,3]
[340581195,1729510242106,-500.0,0.00024657,3]
[340581197,1729510242116,-500.0,0.00024657,3]
[340581199,1729510242125,-500.0,0.00024657,3]
[340581201,1729510242135,-500.0,0.00024657,3]
[340581203,1729510242144,-500.0,0.00024657,3]
[340581205,1729510242153,-500.0,0.00024657,3]
[340581207,1729510242162,-500.0,0.00024657,3]
[340581209,1729510242171,-219.60563609,0.00024657,3]
[340581211,1729510242181,-500.0,0.00024657,3]
[340581213,1729510242191,-500.0,0.00024657,3]
[340581215,1729510242200,-500.0,0.00024657,3]
[340581217,1729510242210,-500.0,0.00024657,3]
[340581219,1729510242220,-500.0,0.00024657,3]
[340581221,1729510242229,-500.0,0.00024657,3]
[340581223,1729510242239,-500.0,0.00024657,3]
[340581225,1729510242249,-500.0,0.00024657,3]
[340581227,1729510242258,-180.9243411,0.00024657,3]
[340581229,1729510242268,-676.56,0.00024657,3]
[340581231,1729510242277,-676.56,0.00024657,3]
[340581233,1729510242287,-676.56,0.00024657,3]
[340581235,1729510242296,-676.56,0.00024657,3]
[340581237,1729510242306,-676.56,0.00024657,3]
[340581239,1729510242316,-676.56,0.00024657,3]
[340581241,1729510242325,-676.56,0.00024657,3]
[340581243,1729510242335,-676.56,0.00024657,3]
[340581245,1729510242344,-676.56,0.00024657,3]
[340581247,1729510242353,-676.56,0.00024657,3]
[340581249,1729510242363,-676.56,0.00024657,3]
[340581251,1729510242372,-676.56,0.00024657,3]
[340581253,1729510242382,-676.56,0.00024657,3]
[340581255,1729510242391,-500.0,0.00024657,3]
[340581257,1729510242401,-500.0,0.00024657,3]
[340581259,1729510242411,-500.0,0.00024657,3]
[340581261,1729510242421,-500.0,0.00024657,3]
[340581263,1729510242431,-500.0,0.00024657,3]
[340581265,1729510242440,-500.0,0.00024657,3]
[340581267,1729510242451,-500.0,0.00024657,3]
[340581269,1729510242461,-500.0,0.00024657,3]
[340581271,1729510242471,-500.0,0.00024657,3]
[340581274,1729510242483,-500.0,0.00024657,3]
[340581276,1729510242494,-500.0,0.00024657,3]
[340581278,1729510242504,-500.0,0.00024657,3]
[340581280,1729510242514,-500.0,0.00024657,3]
[340581282,1729510242524,-500.0,0.00024657,3]
[340581284,1729510242533,-500.0,0.00024657,3]
[340581286,1729510242542,-500.0,0.00024657,3]
[340581288,1729510242552,-500.0,0.00024657,3]
[340581290,1729510242563,-500.0,0.00024657,3]
[340581292,1729510242578,-500.0,0.00024657,3]
[340581294,1729510242588,-500.0,0.00024657,3]
[340581296,1729510242598,-500.0,0.00024657,3]
[340581298,1729510242608,-500.0,0.00024657,3]
[340581300,1729510242618,-500.0,0.00024657,3]
[340581302,1729510242628,-500.0,0.00024657,3]
[340581304,1729510242638,-500.0,0.00024657,3]
[340581306,1729510242647,-500.0,0.00024657,3]
[340581308,1729510242657,-534.72,0.00024657,3]
[340581310,1729510242667,-534.72,0.00024657,3]